fUSD/lending_fUSD_20241227
["ID","MTS","AMOUNT","RATE_DAILY","PERIOD"]
[346840099,1735317048231,-1858.4,0.00010759,2]
[346840100,1735317048240,-2072.4,0.00010759,2]
[346840101,1735317048249,-839.75,0.00010759,2]
[346840102,1735317048259,-637.91,0.00010759,2]
[346840103,1735317048274,-1269.22,0.00010759,2]
[346840104,1735317048283,-1150.37,0.00010759,2]
[346840105,1735317048293,-586.65,0.00010759,2]
[346840106,1735317048302,-1205.59,0.00010759,2]
[346840107,1735317048311,-795.78,0.00010759,2]
[346840108,1735317048322,-500.0,0.00010759,2]
[346840109,1735317048332,-888.45,0.00010759,2]
[346840110,1735317048341,-1009.14,0.00010759,2]
[346840111,1735317048351,-500.0,0.00010759,2]
[346840112,1735317048360,-712.21,0.00010759,2]
[346840113,1735317048370,-2108.22,0.00010759,2]
[346840114,1735317048379,-710.08,0.00010759,2]
[346840115,1735317048388,-702.37,0.00010759,2]
[346840116,1735317048397,-527.06,0.00010759,2]
[346840117,1735317048406,-931.78,0.00010759,2]
[346840118,1735317048415,-2565.51,0.00010759,2]
[346840119,1735317048425,-1167.53,0.00010759,2]
[346840120,1735317048434,-913.36,0.00010759,2]
[346840121,1735317048444,-594.62,0.00010759,2]
[346840122,1735317048454,-650.87,0.00010759,2]
[346840123,1735317048464,-500.0,0.00010759,2]
[346840124,1735317048473,-739.5,0.00010759,2]
[346840125,1735317048482,-961.1,0.00010759,2]
[346840126,1735317048491,-708.6,0.00010759,2]
[346840127,1735317048500,-1983.4,0.00010759,2]
[346840128,1735317048510,-826.35,0.00010759,2]
[346840129,1735317048523,-500.0,0.00010759,2]
[346840130,1735317048533,-500.0,0.00010759,2]
[346840131,1735317048543,-4024.84,0.00010759,2]
[346840132,1735317048552,-500.0,0.00010759,2]
[346840133,1735317048562,-1358.99,0.00010759,2]
[346840134,1735317048572,-2637.0,0.00010759,2]
[346840135,1735317048581,-845.15,0.00010759,2]
[346840136,1735317048591,-500.0,0.00010759,2]
[346840137,1735317048600,-1064.45,0.00010759,2]
[346840138,1735317048611,-12132.88,0.00010759,2]
[346840139,1735317048620,-12132.88,0.00010759,2]
[346840140,1735317048630,-1311.14,0.00010759,2]
[346840141,1735317048639,-1738.74,0.00010759,2]
[346840142,1735317048648,-942.16,0.00010759,2]
[346840143,1735317048658,-1154.05,0.00010759,2]
[346840144,1735317048668,-500.0,0.00010759,2]
[346840145,1735317048677,-676.38,0.00010759,2]
[346840146,1735317048686,-1321.15,0.00010759,2]
[346840147,1735317048696,-7413.51,0.00010759,2]
[346840148,1735317048706,-1589.36,0.00010759,2]
[346840149,1735317048716,-1233.52,0.00010759,2]
[346840150,1735317048726,-963.98,0.00010759,2]
[346840151,1735317048735,-869.31,0.00010759,2]
[346840152,1735317048745,-1872.8,0.00010759,2]
[346840153,1735317048755,-500.0,0.00010759,2]
[346840154,1735317048766,-500.0,0.00010759,2]
[346840155,1735317048775,-655.3,0.00010759,2]
[346840156,1735317048786,-769.59,0.00010759,2]
[346840157,1735317048795,-819.19,0.00010759,2]
[346840158,1735317048805,-3575.3,0.00010759,2]
[346840159,1735317048815,-500.0,0.00010759,2]
[346840160,1735317048825,-5009.04,0.00010759,2]
[346840161,1735317048835,-1122.37,0.00010759,2]
[346840162,1735317048845,-878.34,0.00010759,2]
[346840163,1735317048855,-828.09,0.00010759,2]
[346840164,1735317048865,-19822.26,0.00010759,2]
[346840165,1735317048874,-1997.71,0.00010759,2]
[346840166,1735317048886,-1682.92,0.00010759,2]
[346840167,1735317048895,-2412.16,0.00010759,2]
[346840168,1735317048905,-1958.97,0.00010759,2]
[346840169,1735317048914,-500.0,0.00010759,2]
[346840170,1735317048925,-500.0,0.00010759,2]
[346840171,1735317048935,-500.0,0.00010759,2]
[346840172,1735317048944,-843.47,0.00010759,2]
[346840173,1735317048954,-738.61,0.00010759,2]
[346840174,1735317048965,-9179.47,0.00010759,2]
[346840175,1735317048975,-500.0,0.00010759,2]
[346840176,1735317048984,-500.0,0.00010759,2]
[346840177,1735317048993,-970.39,0.00010759,2]
[346840178,1735317049003,-980.3,0.00010759,2]
[346840179,1735317049012,-1705.75,0.00010759,2]
[346840180,1735317049025,-500.0,0.00010759,2]
[346840181,1735317049034,-49.09067886,0.00010759,2]
[346840182,1735317049070,-2350.85932114,0.00010759,2]
[346840183,1735317049079,-1533.32,0.00010759,2]
[346840184,1735317049088,-1416.44451456,0.00010759,2]
[346840185,1735317049099,-546.54548544,0.00010759,2]
[346840186,1735317049109,-1809.47,0.00010759,2]
[346840187,1735317049119,-1516.52,0.00010759,2]
[346840188,1735317049129,-5022.98,0.00010759,2]
[346840189,1735317049138,-500.0,0.00010759,2]
[346840190,1735317049147,-500.0,0.00010759,2]
[346840191,1735317049156,-1577.91,0.00010759,2]
[346840192,1735317049166,-821.31,0.00010759,2]
[346840193,1735317049175,-2390.69,0.00010759,2]
[346840194,1735317049184,-2368.23,0.00010759,2]
[346840195,1735317049194,-1071.11,0.00010759,2]
[346840196,1735317049203,-2984.50172,0.00010759,2]
[346840197,1735317049212,-500.0,0.00010759,2]
[346840198,1735317049221,-2402.07,0.00010759,2]
[346840199,1735317049231,-2297.54,0.00010759,2]
[346840200,1735317049241,-854.91,0.00010759,2]
[346840201,1735317049250,-727.3,0.0001076,2]
[346840202,1735317049260,-864.9,0.0001076,2]
[346840203,1735317049271,-500.0,0.0001076,2]
[346840204,1735317049280,-500.0,0.0001076,2]
[346840205,1735317049290,-500.0,0.0001076,2]
[346840206,1735317049300,-500.0,0.0001076,2]
[346840207,1735317049309,-500.0,0.0001076,2]
[346840208,1735317049319,-500.0,0.0001076,2]
[346840209,1735317049329,-755.21,0.0001076,2]
[346840210,1735317049339,-826.84,0.0001076,2]
[346840211,1735317049348,-500.0,0.0001076,2]
[346840212,1735317049357,-594.32,0.0001076,2]
[346840213,1735317049367,-1048.37,0.0001076,2]
[346840214,1735317049376,-500.0,0.0001076,2]
[346840215,1735317049386,-500.0,0.0001076,2]
[346840216,1735317049396,-500.0,0.0001076,2]
[346840217,1735317049405,-675.17,0.0001076,2]
[346840218,1735317049414,-500.0,0.0001076,2]
[346840219,1735317049425,-500.0,0.0001076,2]
[346840220,1735317049435,-500.0,0.0001076,2]
[346840221,1735317049445,-500.0,0.0001076,2]
[346840222,1735317049455,-500.0,0.0001076,2]
[346840223,1735317049464,-500.0,0.0001076,2]
[346840224,1735317049473,-500.0,0.0001076,2]
[346840225,1735317049483,-500.0,0.0001076,2]
[346840226,1735317049493,-500.0,0.0001076,2]
[346840227,1735317049503,-989.77,0.0001076,2]
[346840228,1735317049512,-500.0,0.0001076,2]
[346840229,1735317049523,-828.45,0.0001076,2]
[346840230,1735317049533,-500.0,0.0001076,2]
[346840231,1735317049542,-835.82,0.0001076,2]
[346840232,1735317049552,-500.0,0.0001076,2]
[346840233,1735317049561,-500.0,0.0001076,2]
[346840234,1735317049570,-500.0,0.0001076,2]
[346840235,1735317049580,-500.0,0.0001076,2]
[346840236,1735317049589,-500.0,0.0001076,2]
[346840237,1735317049599,-500.0,0.0001076,2]
[346840238,1735317049608,-500.0,0.0001076,2]
[346840239,1735317049617,-500.0,0.0001076,2]
[346840240,1735317049626,-500.0,0.0001076,2]
[346840241,1735317049635,-500.0,0.0001076,2]
[346840242,1735317049644,-593.99,0.0001076,2]
[346840243,1735317049654,-506.88,0.0001076,2]
[346840244,1735317049663,-500.0,0.0001076,2]
[346840245,1735317049672,-500.0,0.0001076,2]
[346840246,1735317049681,-500.0,0.0001076,2]
[346840247,1735317049691,-500.0,0.0001076,2]
[346840248,1735317049700,-500.0,0.0001076,2]
[346840249,1735317049710,-868.24,0.0001076,2]
[346840250,1735317049719,-500.0,0.0001076,2]
[346840251,1735317049728,-500.0,0.0001076,2]
[346840252,1735317049737,-750.66,0.0001076,2]
[346840253,1735317049746,-500.0,0.0001076,2]
[346840254,1735317049756,-500.0,0.0001076,2]
[346840255,1735317049766,-500.0,0.0001076,2]
[346840256,1735317049775,-500.0,0.0001076,2]
[346840257,1735317049785,-382.02265382,0.0001076,2]
[346840258,1735317049795,-676.54,0.0001076,2]
[346840259,1735317049804,-702.75,0.0001076,2]
[346840260,1735317049814,-647.92,0.0001076,2]
[346840261,1735317049823,-500.0,0.0001076,2]
[346840262,1735317049833,-2353.01,0.0001076,2]
[346840263,1735317049842,-668.06,0.0001076,2]
[346840264,1735317049851,-500.0,0.0001076,2]
[346840265,1735317049861,-661.79,0.0001076,2]
[346840266,1735317049869,-1349.92,0.0001076,2]
[346840267,1735317049879,-991.68,0.0001076,2]
[346840268,1735317049891,-819.32,0.0001076,2]
[346840269,1735317049900,-605.51,0.0001076,2]
[346840270,1735317049909,-592.23,0.0001076,2]
[346840271,1735317049919,-849.69,0.0001076,2]
[346840272,1735317049930,-500.0,0.0001076,2]
[346840273,1735317049939,-589.01,0.0001076,2]
[346840274,1735317049949,-1336.68,0.0001076,2]
[346840275,1735317049959,-975.81,0.0001076,2]
[346840276,1735317049968,-3615.63,0.0001076,2]
[346840277,1735317049978,-1017.57,0.0001076,2]
[346840278,1735317049987,-322.46848393,0.0001076,2]
[346840279,1735317049997,-1088.54,0.0001076,2]
[346840280,1735317050007,-24914.65,0.0001076,2]
[346840281,1735317050019,-500.0,0.0001076,2]
[346840282,1735317050028,-958.64,0.0001076,2]
[346840283,1735317050038,-500.0,0.0001076,2]
[346840284,1735317050047,-834.63,0.0001076,2]
[346840285,1735317050059,-910.66,0.0001076,2]
[346840286,1735317050068,-1349.28,0.0001076,2]
[346840287,1735317050078,-605.9,0.0001076,2]
[346840288,1735317050088,-1278.27,0.0001076,2]
[346840289,1735317050097,-4315.82,0.0001076,2]
[346840290,1735317050107,-500.0,0.0001076,2]
[346840291,1735317050116,-1512.83,0.0001076,2]
[346840292,1735317050126,-1065.46,0.0001076,2]
[346840293,1735317050135,-1041.11,0.0001076,2]
[346840294,1735317050145,-1007.32,0.0001076,2]
[346840295,1735317050155,-2570.18,0.0001076,2]
[346840296,1735317050164,-1597.62,0.0001076,2]
[346840297,1735317050173,-1836.76,0.0001076,2]
[346840298,1735317050183,-1000.05,0.0001076,2]
[346840299,1735317050192,-5648.22,0.0001076,2]
[346840300,1735317050202,-764.04,0.0001076,2]
[346840301,1735317050211,-1106.5,0.0001076,2]
[346840302,1735317050221,-785.63,0.0001076,2]
[346840303,1735317050230,-775.9,0.0001076,2]
[346840304,1735317050240,-2147.96,0.0001076,2]
[346840305,1735317050249,-1505.6,0.0001076,2]
[346840306,1735317050259,-1564.62,0.0001076,2]
[346840307,1735317050269,-1929.37,0.0001076,2]
[346840308,1735317050280,-1781.88,0.0001076,2]
[346840309,1735317050289,-616.11,0.0001076,2]
[346840310,1735317050299,-2095.37,0.0001076,2]
[346840311,1735317050308,-1398.79,0.0001076,2]
[346840312,1735317050317,-732.98,0.0001076,2]
[346840313,1735317050327,-1545.89,0.0001076,2]
[346840314,1735317050336,-990.67,0.0001076,2]
[346840315,1735317050346,-500.0,0.0001076,2]
[346840316,1735317050355,-4549.2,0.0001076,2]
[346840317,1735317050364,-500.0,0.0001076,2]
[346840318,1735317050374,-500.0,0.0001076,2]
[346840319,1735317050383,-566.35,0.0001076,2]
[346840320,1735317050392,-1098.0,0.0001076,2]
[346840321,1735317050401,-3607.95,0.0001076,2]
[346840322,1735317050411,-651.85,0.0001076,2]
[346840323,1735317050420,-4407.63,0.0001076,2]
[346840324,1735317050431,-6376.19,0.00010761,2]
[346840325,1735317050441,-2394.74,0.00010761,2]
[346840326,1735317050450,-677.83,0.00010761,2]
[346840327,1735317050460,-839.25,0.00010761,2]
[346840328,1735317050470,-2127.87,0.00010761,2]
[346840329,1735317050479,-2338.65,0.00010761,2]
[346840330,1735317050489,-2189.26,0.00010761,2]
[346840331,1735317050498,-1777.18,0.00010761,2]
[346840332,1735317050507,-2667.9,0.00010761,2]
[346840333,1735317050518,-1817.06,0.00010761,2]
[346840334,1735317050528,-3163.99,0.00010761,2]
[346840335,1735317050538,-771.1,0.00010767,2]
[346840336,1735317050547,-771.1,0.00010767,2]
[346840337,1735317050557,-437.31,0.00010767,2]
[346840338,1735317050566,-771.1,0.00010767,2]
[346840339,1735317050576,-771.1,0.00010767,2]
[346840340,1735317050585,-437.31,0.00010767,2]
[346840341,1735317050595,-771.1,0.00010767,2]
[346840342,1735317050605,-771.1,0.00010767,2]
[346840343,1735317050615,-437.31,0.00010767,2]
[346840344,1735317050628,-771.1,0.00010767,2]
[346840345,1735317050638,-771.1,0.00010767,2]
[346840346,1735317050647,-437.31,0.00010767,2]
[346840347,1735317050657,-771.1,0.00010767,2]
[346840348,1735317050667,-771.1,0.00010767,2]
[346840349,1735317050676,-770.38,0.00010767,2]
[346840350,1735317050686,-437.31,0.00010767,2]
[346840351,1735317050695,-437.31,0.00010767,2]
[346840352,1735317050704,-437.31,0.00010767,2]
[346840353,1735317050714,-437.31,0.00010767,2]
[346840354,1735317050723,-437.22,0.00010767,2]
[346840355,1735317050733,-549.88230768,0.00010773,2]
[346840356,1735317050742,-500.0,0.00010773,2]
[346840357,1735317050752,-500.0,0.00010773,2]
[346840358,1735317050761,-500.0,0.00010773,2]
[346840359,1735317050773,-1000.0,0.000108,3]
[346840360,1735317050783,-30000.0,0.00010813,2]
[346840361,1735317050793,-1409.35076448,0.00010833,2]
[346840362,1735317050802,-800.0,0.00010876,2]
[346840363,1735317050813,-1200.0,0.000109,3]
[346840364,1735317050823,-166.56324234,0.000109,2]
[346840365,1735317050833,-500.0,0.00010931,2]
[346840366,1735317050843,-500.0,0.00010931,2]
[346840367,1735317050862,-500.0,0.00010931,2]
[346840368,1735317050872,-1084.03,0.00010931,2]
[346840369,1735317050883,-500.0,0.00010931,2]
[346840370,1735317050896,-627.98,0.00010931,2]
[346840371,1735317050906,-500.0,0.00010931,2]
[346840372,1735317050916,-3414.62,0.00010932,2]
[346840373,1735317050927,-1661.68,0.00010932,2]
[346840374,1735317051175,-1842.96,0.00010932,2]
[346840375,1735317051185,-555.27,0.00010932,2]
[346840376,1735317051195,-2620.49,0.00010932,2]
[346840377,1735317051204,-681.4,0.00010932,2]
[346840378,1735317051214,-3021.16,0.00010932,2]
[346840379,1735317051223,-9227.29,0.00010932,2]
[346840380,1735317051233,-2298.02,0.00010932,2]
[346840381,1735317051243,-932.91,0.00010932,2]
[346840382,1735317051253,-2059.4,0.00010932,2]
[346840383,1735317051263,-2345.4,0.00010932,2]
[346840384,1735317051273,-3337.05,0.00010932,2]
[346840385,1735317051283,-1360.91,0.00010932,2]
[346840386,1735317051292,-500.0,0.00010932,2]
[346840387,1735317051302,-500.0,0.00010932,2]
[346840388,1735317051312,-1466.21,0.00010932,2]
[346840389,1735317051322,-920.29,0.00010932,2]
[346840390,1735317051331,-1272.47,0.00010932,2]
[346840391,1735317051340,-1126.46,0.00010932,2]
[346840392,1735317051350,-656.69,0.00010932,2]
[346840393,1735317051359,-2298.25,0.00010932,2]
[346840394,1735317051368,-1766.72,0.00010932,2]
[346840395,1735317051378,-10887.01,0.00010932,2]
[346840396,1735317051387,-933.3,0.00010932,2]
[346840397,1735317051397,-1172.03,0.00010933,2]
[346840398,1735317051406,-500.0,0.00010933,2]
[346840399,1735317051416,-500.0,0.00010933,2]
[346840400,1735317051426,-758.21,0.00010933,2]
[346840401,1735317051435,-500.0,0.00010933,2]
[346840402,1735317051445,-554.36,0.00010933,2]
[346840403,1735317051455,-809.61,0.00010933,2]
[346840404,1735317051464,-1040.55,0.00010933,2]
[346840405,1735317051473,-710.19,0.00010933,2]
[346840406,1735317051483,-974.48,0.00010933,2]
[346840407,1735317051493,-500.0,0.00010933,2]
[346840408,1735317051502,-611.04,0.00010933,2]
[346840409,1735317051512,-543.19,0.00010933,2]
[346840410,1735317051522,-500.0,0.00010933,2]
[346840411,1735317051532,-500.0,0.00010933,2]
[346840412,1735317051541,-510.06,0.00010933,2]
[346840413,1735317051551,-500.0,0.00010933,2]
[346840414,1735317051560,-792.16,0.00010933,2]
[346840415,1735317051570,-1011.66,0.00010933,2]
[346840416,1735317051579,-500.0,0.00010933,2]
[346840417,1735317051589,-500.0,0.00010933,2]
[346840418,1735317051598,-500.0,0.00010933,2]
[346840419,1735317051608,-1102.15,0.00010933,2]
[346840420,1735317051617,-500.0,0.00010933,2]
[346840421,1735317051626,-500.0,0.00010933,2]
[346840422,1735317051635,-500.0,0.00010933,2]
[346840423,1735317051645,-500.0,0.00010933,2]
[346840424,1735317051654,-912.49,0.00010933,2]
[346840425,1735317051664,-500.0,0.00010933,2]
[346840426,1735317051674,-500.0,0.00010933,2]
[346840427,1735317051683,-1603.05,0.00010933,2]
[346840428,1735317051691,-532.65,0.00010933,2]
[346840429,1735317051701,-1248.53,0.00010933,2]
[346840430,1735317051711,-500.0,0.00010933,2]
[346840431,1735317051720,-690.06,0.00010933,2]
[346840432,1735317051730,-500.0,0.00010933,2]
[346840433,1735317051741,-688.19,0.00010933,2]
[346840434,1735317051752,-375.00265216,0.00010933,2]
[346840435,1735317051761,-1251.65,0.00010933,2]
[346840436,1735317051772,-500.0,0.00010933,2]
[346840437,1735317051782,-500.0,0.00010933,2]
[346840438,1735317051792,-385.5442559,0.00010933,2]
[346840439,1735317051801,-712.32,0.00010933,2]
[346840440,1735317051812,-1147.81,0.00010933,2]
[346840441,1735317051822,-597.97,0.00010933,2]
[346840442,1735317051832,-623.59,0.00010933,2]
[346840443,1735317051841,-597.32,0.00010933,2]
[346840444,1735317051851,-947.53,0.00010933,2]
[346840445,1735317051861,-621.69,0.00010933,2]
[346840446,1735317051871,-500.0,0.00010933,2]
[346840447,1735317051880,-589.52,0.00010933,2]
[346840448,1735317051894,-1345.02,0.00010933,2]
[346840449,1735317051904,-879.4,0.00010933,2]
[346840450,1735317051914,-1336.82,0.00010933,2]
[346840451,1735317051923,-500.0,0.00010933,2]
[346840452,1735317051934,-500.0,0.00010933,2]
[346840453,1735317051943,-500.0,0.00010933,2]
[346840454,1735317051953,-1313.23,0.00010933,2]
[346840455,1735317051966,-1010.45,0.00010933,2]
[346840456,1735317051976,-500.0,0.00010933,2]
[346840457,1735317051986,-1147.58,0.00010933,2]
[346840458,1735317051996,-751.45,0.00010933,2]
[346840459,1735317052006,-1818.38,0.00010933,2]
[346840460,1735317052016,-3688.97,0.00010933,2]
[346840461,1735317052026,-2503.22,0.00010933,2]
[346840462,1735317052035,-1629.34,0.00010933,2]
[346840463,1735317052045,-996.56,0.00010933,2]
[346840464,1735317052054,-655.41,0.00010933,2]
[346840465,1735317052065,-1092.45,0.00010933,2]
[346840466,1735317052075,-2438.26,0.00010933,2]
[346840467,1735317052084,-500.0,0.00010933,2]
[346840468,1735317052093,-553.85,0.00010933,2]
[346840469,1735317052103,-620.9,0.00010933,2]
[346840470,1735317052113,-28457.1,0.00010933,2]
[346840471,1735317052122,-817.32,0.00010933,2]
[346840472,1735317052131,-7217.12,0.00010933,2]
[346840473,1735317052141,-1051.42,0.00010933,2]
[346840474,1735317052151,-5455.59,0.00010933,2]
[346840475,1735317052160,-1127.01,0.00010933,2]
[346840476,1735317052169,-952.22,0.00010933,2]
[346840477,1735317052178,-1653.46,0.00010933,2]
[346840478,1735317052187,-1194.23,0.00010933,2]
[346840479,1735317052197,-1097.31,0.00010933,2]
[346840480,1735317052207,-500.0,0.00010933,2]
[346840481,1735317052216,-942.18,0.00010933,2]
[346840482,1735317052225,-4252.03,0.00010933,2]
[346840483,1735317052235,-3186.53,0.00010933,2]
[346840484,1735317052245,-974.59,0.00010933,2]
[346840485,1735317052255,-500.0,0.00010933,2]
[346840486,1735317052264,-1112.11,0.00010933,2]
[346840487,1735317052275,-2788.06,0.00010933,2]
[346840488,1735317052284,-1385.55,0.00010933,2]
[346840489,1735317052294,-5038.05,0.00010933,2]
[346840490,1735317052304,-1518.08,0.00010933,2]
[346840491,1735317052314,-1594.05,0.00010933,2]
[346840492,1735317052324,-985.29,0.00010933,2]
[346840493,1735317052334,-582.11,0.00010933,2]
[346840494,1735317052343,-1379.95,0.00010933,2]
[346840495,1735317052353,-1185.62,0.00010933,2]
[346840496,1735317052362,-2139.63,0.00010933,2]
[346840497,1735317052372,-500.0,0.00010933,2]
[346840498,1735317052381,-570.36,0.00010933,2]
[346840499,1735317052390,-1205.91,0.00010933,2]
[346840500,1735317052399,-1820.43,0.00010933,2]
[346840501,1735317052409,-865.19,0.00010933,2]
[346840502,1735317052419,-830.77,0.00010933,2]
[346840503,1735317052428,-638.26,0.00010933,2]
[346840504,1735317052437,-1032.09,0.00010933,2]
[346840505,1735317052447,-2483.46,0.00010933,2]
[346840506,1735317052456,-1328.43,0.00010933,2]
[346840507,1735317052466,-1820.15,0.00010933,2]
[346840508,1735317052476,-1279.89,0.00010933,2]
[346840509,1735317052485,-764.22,0.00010933,2]
[346840510,1735317052495,-7500.0,0.00010958,2]
[346840511,1735317052505,-3594.04223337,0.00010958,2]
[346840512,1735317052515,-400.0,0.00010986,2]
[346840513,1735317052526,-9651.10000001,0.00011,2]
[346840514,1735317052536,-429.20526385,0.00011028,2]
[346840515,1735317052545,-500.0,0.0001103,2]
[346840516,1735317052555,-490547.95792847,0.00011031,2]
[346840517,1735317052579,-152.363359,0.00010658,2]
[346840518,1735317052589,-1143.07224638,0.00011031,2]
[346840519,1735317052600,-403.24,0.00011031,2]
[346840520,1735317052611,-1104.4076899,0.00011031,2]
[346840521,1735317052623,-2482.50469129,0.00011031,2]
[346840522,1735317052634,-6050.9999995,0.00011031,2]
[346840523,1735317052646,-1828.433986,0.00011031,2]
[346840524,1735317052656,-986.0,0.00011031,2]
[346840526,1735317210769,150.0,0.00018897,120]
[346840564,1735318023590,584.12,8.219e-05,2]
[346840915,1735318231867,-490.29,9.52e-05,2]
[346840916,1735318231878,-1000.0,9.57e-05,2]
[346840917,1735318231887,-250.0,9.584e-05,2]
[346840918,1735318231897,-164.93,9.602e-05,2]
[346840919,1735318231907,-300.0,9.613e-05,2]
[346840920,1735318231916,-50000.0,9.614e-05,2]
[346840921,1735318231926,-150.0,9.616e-05,2]
[346840922,1735318231936,-14182.06822289,9.636e-05,2]
[346840923,1735318231949,-334.78694722,9.636e-05,2]
[346840924,1735318231977,-881.08675534,9.636e-05,2]
[346840925,1735318231988,-1428.22687009,9.636e-05,2]
[346840926,1735318232014,-7073.83120446,9.636e-05,2]
[346840927,1735318232024,-3776.53082574,9.645e-05,2]
[346840928,1735318232035,-839.71,9.646e-05,2]
[346840929,1735318232045,-250.0,9.783e-05,2]
[346840930,1735318232054,-104.55861743,9.798e-05,2]
[346840931,1735318232077,-145.44138257,9.798e-05,2]
[346840932,1735318232087,-168.41,9.89e-05,2]
[346840933,1735318232096,-1473.14861743,9.913e-05,2]
[346840934,1735318232108,-358.35358244,9.913e-05,2]
[346840935,1735318232127,-1353.65780013,9.913e-05,2]
[346840936,1735318232138,-366.04,0.00010137,2]
[346840937,1735318232147,-3267.58883987,0.00010238,2]
[346840960,1735318237783,-1075.96478579,0.00010238,2]
[346840961,1735318237795,-1605.44637434,0.00010238,2]
[346840962,1735318237805,-249.8,0.00010365,2]
[346840963,1735318237814,-247.33,0.00010368,2]
[346840964,1735318237825,-254.39,0.00010373,2]
[346840965,1735318237836,-254.79,0.00010382,2]
[346840966,1735318237846,-250.56,0.00010396,2]
[346840967,1735318237857,-246.98,0.0001042,2]
[346840968,1735318237867,-584.12,0.00010447,2]
[346840969,1735318237877,-250.12,0.0001046,2]
[346840970,1735318237886,-246.57,0.0001046,2]
[346840971,1735318237897,-253.92,0.0001046,2]
[346840972,1735318237906,-246.7,0.0001046,2]
[346840973,1735318237916,-254.07,0.0001046,2]
[346840974,1735318237925,-246.27,0.0001046,2]
[346840975,1735318237935,-26902.4721,0.0001046,2]
[346840976,1735318237945,-500.0,0.0001046,2]
[346840977,1735318237956,-721.802,0.0001046,2]
[346840978,1735318237966,-436.57,0.00010548,2]
[346840979,1735318237976,-150.0,0.00010548,2]
[346840980,1735318237985,-35551.523,0.00010557,2]
[346840981,1735318237995,-6439.15986373,0.00010559,2]
[346840982,1735318238007,-8628.54791454,0.00010559,2]
[346840983,1735318238019,-617.91629478,0.00010559,2]
[346840984,1735318238031,-1003.5,0.00010559,2]
[346840985,1735318238047,-31932.16122695,0.00010559,2]
[346840986,1735318238057,-420.0,0.00010574,2]
[346840987,1735318238067,-962.46929232,0.0001063,2]
[346840988,1735318238080,-421.88990768,0.0001063,2]
[346840989,1735318238090,-551.3,0.00010654,2]
[346840990,1735318238099,-2514.71609232,0.00010654,2]
[346840991,1735318238111,-184.39390768,0.00010654,2]
[346840993,1735318238120,-688.08,0.00010654,2]
[346840995,1735318238130,-128.72609232,0.00010654,2]
[346840996,1735318238152,-2849.37000784,0.00010654,2]
[346840997,1735318238171,-5627.93389984,0.00010654,2]
[346840998,1735318238181,-2317.34,0.00010654,2]
[346840999,1735318238195,-886.43,0.00010654,2]
[346841000,1735318238205,-2039.83,0.00010654,2]
[346841001,1735318238215,-500.0,0.00010654,2]
[346841002,1735318238225,-717.16649873,0.00010654,2]
[346841003,1735318238237,-318.19350127,0.00010654,2]
[346841004,1735318238246,-194.5565006,0.00010654,2]
[346841005,1735318238257,-594.750028,0.00010654,2]
[346841019,1735318239799,-2301.9334714,0.00010654,2]
[346841020,1735318239808,-701.0665286,0.00010654,2]
[346841021,1735318239888,-300.0,0.00010654,2]
[346841022,1735318239922,-73.2934714,0.00010654,2]
[346841023,1735318239932,-500.0,0.00010654,2]